bitfinex-derivatives/quotes_SOLF0:USTF0_20220102
["timestamp","ask_amount","ask_price","bid_price","bid_amount"]
[1641135771793,30.2025,175.17,175.1,19.50169455]
[1641135771992,6.326,175.16,175.1,19.50169455]
[1641135772494,2.77995953,175.15,175.14,4.05336056]
[1641135773096,6.326,175.16,175.1,13.40375276]
[1641135773297,6.326,175.16,175.13,4.05341772]
[1641135773897,2.77999479,175.15,175.1,1.2734097]
[1641135774798,30.2025,175.17,175.13,4.05339372]
[1641135774999,30.2025,175.17,175.13,9.91739372]
[1641135775400,2.77978412,175.16,175.15,4.0532011]
[1641135776300,27.66479,175.18,175.14,4.05320948]
[1641135776903,2.77984954,175.17,175.13,1.27341614]
[1641135777506,27.66479,175.18,175.12,29.3377]
[1641135777705,27.66479,175.18,175.15,4.053192]
[1641135778206,27.66479,175.18,175.12,29.3377]
[1641135778407,2.77883903,175.17,175.14,4.05176469]
[1641135779106,2.77883903,175.17,175.13,1.27292567]
[1641135779307,27.66479,175.18,175.15,4.05164657]
[1641135780111,2.77878425,175.17,175.14,4.0517149]
[1641135780808,27.66479,175.18,175.1,12.13034306]
[1641135781511,12.159576,175.16,175.12,4.05218128]
[1641135782311,12.89221084,175.17,175.09,1.27288401]
[1641135782510,43.25201084,175.17,175.09,1.27288401]
[1641135782911,12.15651949,175.16,175.12,4.05217316]
[1641135783510,2.77929727,175.16,175.09,1.27288401]
[1641135784311,14.93585739,175.16,175.12,4.05218671]
[1641135785412,17.93585739,175.16,175.12,4.05218671]
[1641135785613,17.93585739,175.16,175.11,4.05218303]
[1641135785813,27.66479,175.13,175.11,4.05218303]
[1641135786315,2.77929727,175.12,175.09,4.0529041]
[1641135787118,4.969,175.12,175.08,4.05298686]
[1641135787721,4.969,175.12,175.05,1.27280345]
[1641135787920,2.78018868,175.11,175.05,1.27280345]
[1641135788522,36.0911,175.12,175.09,4.05451599]
[1641135788721,4.969,175.12,175.09,4.05451599]
[1641135789123,2.78121449,175.11,175.05,19.50158515]
[1641135789622,35.0221,175.12,175.09,4.05449373]
[1641135789921,4.969,175.12,175.09,4.05449373]
[1641135790430,4.969,175.12,175.05,19.50158515]
[1641135790628,2.78119769,175.11,175.05,19.50158515]
[1641135791334,34.1652,175.12,175.09,4.05448898]
[1641135791532,39.82135012,175.13,175.09,1.27678977]
[1641135791932,39.82135012,175.13,175.09,5.80578977]
[1641135792331,2.78137798,175.12,175.09,4.529]
[1641135792933,39.82135012,175.13,175.09,4.529]
[1641135793131,27.66479,175.13,175.06,32.8698]
[1641135793632,27.66479,175.13,175.06,29.8698]
[1641135793832,64.48988149,175.17,175.1,1.27333721]
[1641135793833,2.78066154,175.12,175.1,1.27333721]
[1641135794734,12.15656012,175.15,175.07,19.50191201]
[1641135795838,12.15656012,175.15,175.07,47.16670201]
[1641135796636,12.15656012,175.15,175.08,1.27333721]
[1641135797936,14.93722166,175.16,175.08,1.27333721]
[1641135798537,12.15656012,175.15,175.08,1.27333721]
[1641135799638,17.79356012,175.15,175.08,1.27333721]
[1641135800540,2.78066154,175.14,175.08,1.27333721]
[1641135807248,5.78066154,175.14,175.08,1.27333721]
[1641135808250,3.0,175.09,175.05,1.27333721]
[1641135808449,3.0,175.06,175.05,1.27333721]
[1641135808850,3.0,175.08,175.05,1.27333721]
[1641135809049,2.78066154,175.06,175.0,44.47792455]
[1641135809249,5.78066154,175.06,175.0,12.13034306]
[1641135809961,2.78066154,175.05,174.99,12.13034306]
[1641135810151,6.98866154,175.05,174.99,12.13034306]
[1641135810750,2.78066154,175.04,174.99,19.50281983]
[1641135811452,4.208,175.05,175.0,12.13034306]
[1641135812051,29.3564,175.06,175.0,12.13034306]
[1641135812551,2.78252555,175.04,174.99,49.38511983]
[1641135812952,2.78252555,175.04,174.99,43.28598027]
[1641135813152,2.78252555,175.05,175.0,1.27333721]
[1641135813852,3.0,175.05,175.0,1.27333721]
[1641135814054,2.78252555,175.06,175.0,1.27333721]
[1641135814252,2.78252555,175.04,174.99,19.50293881]
[1641135814952,32.87262555,175.06,174.99,19.50293881]
[1641135815753,2.78252555,175.05,174.99,19.50293881]
[1641135817357,30.0901,175.06,175.01,12.13034306]
[1641135817958,30.0901,175.06,175.01,19.50293881]
[1641135818860,27.66479,175.07,175.01,19.50293881]
[1641135819459,2.78228525,175.06,175.01,1.27333721]
[1641135821163,2.78228525,175.06,174.99,13.40368027]
[1641135821363,2.78228525,175.06,174.99,19.50297971]
[1641135823364,14.93884537,175.06,174.99,1.27333721]
[1641135824166,2.78228525,175.06,175.0,12.13034306]
[1641135829170,2.78228525,175.06,175.01,12.13034306]
[1641135829872,2.78228525,175.06,175.01,1.27333721]
[1641135835183,2.78228525,175.06,174.99,1.27333721]
[1641135837085,8.34628525,175.06,174.99,1.27333721]
[1641135837887,2.78228525,175.05,174.99,1.27333721]
[1641135839093,2.78228525,175.06,174.99,1.27333721]
[1641135839290,2.78228525,175.06,174.99,6.28933721]
[1641135840092,14.93884537,175.06,175.0,1.27333721]
[1641135842295,12.15656012,175.06,175.0,1.27333721]
[1641135843193,14.93884537,175.06,175.0,1.27333721]
[1641135845496,14.93884537,175.06,174.99,1.27333721]
[1641135852202,14.93884537,175.06,175.02,4.05601639]
[1641135854302,14.93884537,175.06,174.98,77.68403306]
[1641135854804,14.93884537,175.06,175.02,4.05606773]
[1641135855504,14.93884537,175.06,174.98,71.87503306]
[1641135856107,14.93884537,175.06,175.02,4.05606633]
[1641135857109,14.93884537,175.06,174.98,71.87503306]
[1641135857710,14.93884537,175.06,175.02,4.05608062]
[1641135858311,14.93884537,175.06,174.98,44.21024306]
[1641135858516,12.15656012,175.06,175.01,4.05253924]
[1641135859113,14.93884537,175.06,174.99,1.27212683]
[1641135860118,14.93884537,175.06,175.01,4.05254572]
[1641135860719,14.93884537,175.06,174.99,1.27212783]
[1641135861417,2.78228525,175.06,175.01,4.05250203]
[1641135862124,14.93884537,175.06,175.02,4.05598259]
[1641135862719,14.93884537,175.06,174.98,71.87503306]
[1641135863921,14.93884537,175.06,175.02,4.05599683]
[1641135864219,14.93884537,175.06,174.98,71.87503306]
[1641135865020,27.66479,175.07,175.02,4.05598573]
[1641135865519,14.95067606,175.06,174.99,1.27324797]
[1641135866420,27.66479,175.07,175.02,4.0559797]
[1641135867024,2.78272611,175.06,174.99,1.27324797]
[1641135867221,14.95065152,175.06,174.99,1.27324797]
[1641135868124,32.66979,175.07,174.99,1.27324797]
[1641135868325,3.0,175.06,175.02,4.05600439]
[1641135868523,35.66979,175.07,175.02,4.05600439]
[1641135869126,30.66479,175.07,175.02,4.05600439]
[1641135869327,3.0,175.06,175.02,4.05600439]
[1641135869524,17.95080058,175.06,174.99,1.27324797]
[1641135870425,2.7827593,175.05,175.02,4.05600531]
[1641135870926,3.0,175.04,175.02,4.05600531]
[1641135871126,15.16790508,175.06,174.99,1.27324797]
[1641135871732,3.0,175.06,174.99,1.27324797]
[1641135871930,2.78287617,175.05,175.02,4.05611156]
[1641135872631,30.66479,175.07,174.98,39.79513306]
[1641135872831,12.16849622,175.05,175.01,4.05616541]
[1641135873838,14.95134122,175.06,174.99,1.27323221]
[1641135874234,14.95134122,175.06,175.01,4.05614467]
[1641135874434,3.0,175.05,175.01,4.05614467]
[1641135874634,17.95134122,175.06,175.01,4.05614467]
[1641135875036,14.95134122,175.06,175.01,4.05614467]
[1641135875234,14.95134122,175.06,174.99,4.983]
[1641135875434,2.78291115,175.04,174.99,6.25622886]
[1641135876034,5.71037003,175.05,175.01,4.05617788]
[1641135876735,5.71037003,175.05,174.99,4.983]
[1641135876934,14.95192034,175.04,175.0,4.05632374]
[1641135877937,5.71037003,175.05,174.98,27.66479]
[1641135878136,17.87905444,175.05,175.01,4.05622814]
[1641135878640,14.9519685,175.04,175.0,4.0564824]
[1641135879439,2.78328409,175.04,174.98,31.71330463]
[1641135880645,2.78328409,175.04,174.98,27.66479]
[1641135881246,2.78328409,175.04,174.98,4.04850563]
[1641135881947,14.9519685,175.04,174.97,5.3192911]
[1641135882948,27.66479,175.02,174.98,4.04845837]
[1641135883546,4.04851379,175.01,174.97,1.27068973]
[1641135884050,27.66479,175.02,174.96,30.4631]
[1641135884251,4.04868434,175.0,174.97,4.04868434]
[1641135884949,27.66479,175.02,174.96,30.4631]
[1641135885149,27.66479,175.02,174.97,1.27067092]
[1641135885550,12.16868441,175.04,174.97,1.27067092]
[1641135885752,4.04869658,175.0,174.97,8.62369658]
[1641135886351,12.16868441,175.04,174.97,4.575]
[1641135886755,4.04845911,175.01,174.98,5.31915431]
[1641135887552,27.66479,175.03,174.96,30.4631]
[1641135887755,2.77776391,175.02,174.97,1.27068445]
[1641135888255,27.66479,175.03,174.96,30.4631]
[1641135888455,39.83347441,175.03,174.99,4.05653644]
[1641135889256,27.66479,175.03,174.96,30.4631]
[1641135889558,2.78325179,175.02,175.0,4.05645303]
[1641135889853,12.16935909,175.04,175.0,8.63245303]
[1641135890055,1.19765909,175.05,175.01,4.05628407]
[1641135890255,1.19765909,175.05,175.01,35.99808407]
[1641135890654,1.19765909,175.05,175.01,38.99808407]
[1641135890855,1.19765909,175.05,175.01,66.66287407]
[1641135891055,32.34758149,175.09,175.01,62.60659]
[1641135891259,27.66479,175.11,175.04,4.05555586]
[1641135891457,27.66479,175.11,175.04,8.59155586]
[1641135892058,27.66479,175.11,175.04,4.536]
[1641135892560,27.66479,175.11,175.06,4.05504594]
[1641135893458,27.66479,175.11,175.02,6.0989425]
[1641135894259,27.66479,175.11,175.06,4.0551271]
[1641135894960,27.66479,175.11,175.02,6.0989425]
[1641135895162,32.20879,175.11,175.02,6.0989425]
[1641135895766,3.0,175.09,175.05,4.05526267]
[1641135896163,8.709066,175.09,175.05,4.05526267]
[1641135896463,8.709066,175.09,175.03,4.05580672]
[1641135897164,27.66479,175.07,175.02,4.05608154]
[1641135897365,33.96079,175.07,175.02,4.05608154]
[1641135897964,33.96079,175.07,175.01,31.9418]
[1641135898664,33.96079,175.07,175.02,4.05595688]
[1641135899367,33.96079,175.07,175.01,31.9418]
[1641135899768,33.96079,175.07,175.03,4.05572958]
[1641135900668,33.96079,175.07,175.02,4.05591026]
[1641135901071,33.96079,175.07,175.01,31.9418]
[1641135901268,33.96079,175.07,175.03,4.05577115]
[1641135901869,33.96079,175.07,175.01,35.98277606]
[1641135902469,33.96079,175.07,175.01,31.9418]
[1641135903268,33.96079,175.07,175.0,4.0410977]
[1641135903468,36.96079,175.07,175.0,4.0410977]
[1641135903671,4.04117938,175.05,174.95,27.66479]
[1641135903869,4.04117938,175.05,174.96,30.5457]
[1641135904170,27.66479,175.07,174.99,4.0412609]
[1641135905372,4.04126757,175.05,174.96,30.5457]
[1641135905972,4.04144066,175.03,174.98,4.04144066]
[1641135906670,31.92779,175.07,174.96,30.5457]
[1641135906871,34.92779,175.07,174.96,30.5457]
[1641135907471,4.04150779,175.03,174.98,4.04150779]
[1641135908273,34.92779,175.07,174.96,30.5457]
[1641135908975,31.92779,175.07,174.96,30.5457]
[1641135909177,10.12299388,175.06,175.01,4.05616958]
[1641135909777,10.12299388,175.06,174.97,6.10168445]
[1641135910581,10.12299388,175.06,175.01,4.05616452]
[1641135910878,10.12299388,175.06,175.01,10.81116452]
[1641135911478,27.66479,175.07,175.02,4.05608437]
[1641135912178,30.66479,175.07,175.01,4.05616084]
[1641135912380,10.1229624,175.06,175.01,4.05616084]
[1641135912779,10.1229624,175.06,174.97,6.10168445]
[1641135913882,30.66479,175.07,175.01,4.05616861]
[1641135914281,27.66479,175.07,174.97,6.10168445]
[1641135914981,27.66479,175.07,175.01,4.05616574]
[1641135915581,10.1232105,175.06,174.97,6.10168445]
[1641135916583,10.1232105,175.06,175.01,4.0562357]
[1641135917485,10.1232105,175.06,175.0,6.176]
[1641135918087,10.1232105,175.06,174.97,6.10168445]
[1641135918385,10.1232105,175.06,175.01,4.05622058]
[1641135918887,10.1232105,175.06,174.97,10.62668445]
[1641135919586,10.1232105,175.06,175.01,4.05621889]
[1641135920488,12.16873157,175.05,174.98,27.66479]
[1641135920889,10.1232105,175.06,175.01,4.05620149]
[1641135921594,27.66479,175.07,174.98,27.66479]
[1641135922394,39.80716185,175.07,175.0,4.04763847]
[1641135923595,39.80716185,175.07,174.98,32.50379]
[1641135923796,27.66479,175.07,175.01,4.04739658]
[1641135924200,27.66479,175.07,175.02,4.04735417]
[1641135924397,4.04735417,175.05,175.02,4.04735417]
[1641135925399,27.66479,175.07,174.98,44.67252157]
[1641135926201,4.04734358,175.05,175.02,4.04734358]
[1641135926406,4.04734358,175.05,175.02,9.39034358]
[1641135926603,27.66479,175.07,175.02,5.343]
[1641135927307,4.04733141,175.05,175.02,9.39033141]
[1641135928106,31.05,175.08,175.02,5.343]
[1641135929006,4.04729162,175.06,175.02,9.39029162]
[1641135930009,31.05,175.08,175.04,27.66479]
[1641135930809,4.04726564,175.06,175.04,27.66479]
[1641135931311,8.71118536,175.05,175.02,4.04727392]
[1641135931609,5.71118536,175.05,175.02,4.04727392]
[1641135931810,5.71118536,175.05,174.99,12.16873157]
[1641135932009,8.49393826,175.05,174.98,31.72157102]
[1641135932513,8.49393826,175.05,174.98,27.66479]
[1641135932514,12.17139896,175.02,174.98,27.66479]
[1641135932711,17.73639896,175.02,174.98,27.66479]
[1641135933511,2.7827529,175.01,174.98,27.66479]
[1641135934012,12.17139896,175.01,174.98,27.66479]
[1641135935414,12.17139896,175.02,174.98,27.66479]
[1641135935815,4.04256644,175.0,174.98,27.66479]
[1641135936217,4.04256644,175.0,174.98,30.66479]
[1641135936416,2.7827529,175.03,174.99,3.0]
[1641135936615,2.7827529,175.03,174.99,6.271]
[1641135938117,27.66479,175.07,174.99,6.271]
[1641135938118,2.7827529,175.06,174.99,6.271]
[1641135938318,2.7827529,175.06,174.98,30.66479]
[1641135939118,2.7827529,175.06,174.98,27.66479]
[1641135939320,2.7827529,175.06,174.99,1.26979768]
[1641135941724,2.7827529,175.06,174.98,27.66479]
[1641135942330,9.3037529,175.06,174.98,27.66479]
[1641135943330,2.7827529,175.05,174.98,27.66479]
[1641135943930,2.7827529,175.05,174.95,31.3293]
[1641135944230,2.7827529,175.05,174.95,34.3293]
[1641135944431,2.7827529,175.05,174.99,27.66479]
[1641135944830,27.66479,175.07,174.99,27.66479]
[1641135946232,2.7827529,175.06,175.0,1.26980683]
[1641135946832,2.7827529,175.06,174.99,27.66479]
[1641135951441,12.17139896,175.05,175.0,1.27433035]
[1641135951940,2.7827529,175.06,175.0,1.27433035]
[1641135953844,14.95415186,175.06,175.0,1.27433035]
[1641135955843,12.17139896,175.05,175.0,1.27433035]
[1641135956546,14.95415186,175.06,175.0,1.27433035]
[1641135957143,14.95415186,175.06,174.99,27.66479]
[1641135957144,2.7827529,175.06,174.99,27.66479]
[1641135960850,14.95415186,175.09,174.99,27.66479]
[1641135961649,2.7827529,175.08,174.99,27.66479]
[1641135961848,2.7827529,175.08,174.99,59.75759]
[1641135963553,14.95415186,175.08,174.99,59.75759]
[1641135964353,2.7827529,175.07,174.99,59.75759]
[1641135965556,2.7827529,175.08,174.99,59.75759]
[1641135966255,12.17139896,175.06,175.0,1.27433545]
[1641135972265,12.17139896,175.08,175.0,19.545287]
[1641135972864,12.17139896,175.07,175.0,1.27433545]
[1641135973064,16.38939896,175.07,175.0,1.27433545]
[1641135973668,2.7827529,175.06,175.0,1.27433545]
[1641135974769,12.17139896,175.07,175.0,1.27433545]
[1641135977471,12.17139896,175.07,175.01,27.66479]
[1641135978275,12.17139896,175.07,175.02,1.27433545]
[1641135979074,12.17139896,175.08,175.02,1.27433545]
[1641135981579,14.95415186,175.09,175.02,1.27433545]
[1641135982181,12.17139896,175.08,175.02,1.27433545]
[1641135983181,14.95415186,175.09,175.02,1.27433545]
[1641135983581,27.66479,175.06,175.02,1.27433545]
[1641135983781,32.18179,175.06,175.02,1.27433545]
[1641135983982,4.517,175.06,175.02,1.27433545]
[1641135984380,4.517,175.06,175.0,1.27433545]
[1641135985685,12.17139896,175.09,175.0,1.27433545]
[1641135986584,14.95015943,175.09,175.0,1.27433545]
[1641135987485,39.83618896,175.07,175.0,1.27433545]
[1641135987687,44.61918896,175.07,175.0,1.27433545]
[1641135988284,14.95015943,175.06,175.0,1.27433545]
[1641135988989,2.77876047,175.06,175.0,1.27433545]
[1641135992692,39.83618896,175.07,175.0,1.27433545]
[1641135993392,14.95235316,175.06,174.99,32.0928]
[1641135994194,14.95235316,175.06,175.0,1.27394489]
[1641135994895,14.95235316,175.06,174.99,32.0928]
[1641135995896,14.95235316,175.06,175.0,1.27394377]
[1641135996496,14.95235316,175.06,174.99,30.8617]
[1641135997300,14.95235316,175.06,175.02,4.05491112]
[1641135997997,14.95235316,175.06,175.01,4.05499425]
[1641135998802,14.95235316,175.06,175.0,1.27393736]
[1641135999198,14.95235316,175.06,175.01,4.0549963]
[1641136000501,12.17139896,175.05,174.97,41.10745571]
[1641136001501,2.7809542,175.05,175.01,4.05503397]
[1641136002001,5.71069613,175.04,175.01,4.05503397]
[1641136002302,12.16509514,175.05,174.98,1.27393414]
[1641136002901,30.1396,175.06,174.98,1.27393414]
[1641136003106,12.16644141,175.03,174.99,4.05548047]
[1641136003907,12.16644141,175.03,174.97,30.5324]
[1641136004108,12.16644141,175.04,175.0,4.05529222]
[1641136004607,12.16644141,175.04,174.97,30.5324]
[1641136004808,12.16644141,175.04,174.98,1.27391231]
[1641136005409,12.90282225,175.05,175.0,4.05520378]
[1641136006214,14.94684523,175.05,174.98,1.27392862]
[1641136007009,14.94684523,175.05,175.0,4.0550811]
[1641136008114,2.78159144,175.05,174.99,4.04910615]
[1641136008815,2.78159144,175.05,174.97,30.5324]
[1641136009716,2.78159144,175.05,174.99,4.04911694]
[1641136010419,2.78159144,175.05,174.97,30.5324]
[1641136010420,2.78159144,175.05,175.0,4.0490652]
[1641136011018,42.30485379,175.06,174.98,1.27205485]
[1641136011623,2.77699719,175.05,175.0,4.0490534]
[1641136012322,42.30485379,175.06,174.98,1.27205485]
[1641136013726,4.04904913,175.03,175.0,4.04904913]
[1641136014327,42.30485379,175.06,174.98,1.27205485]
[1641136014527,4.04908396,175.02,174.98,1.27205485]
[1641136015127,4.04904016,175.03,175.0,4.04904016]
[1641136015931,4.04887597,175.04,175.01,4.04887597]
[1641136016933,30.1396,175.06,174.98,1.27207395]
[1641136017131,2.77675746,175.05,174.98,1.27207395]
[1641136017632,4.05609955,175.03,175.02,4.05609955]
[1641136018229,35.2696,175.06,174.98,19.54313572]
[1641136018431,2.78173848,175.05,174.98,19.54313572]
[1641136019032,42.30794605,175.06,175.02,4.05611535]
[1641136019233,12.16834605,175.06,175.02,4.05611535]
[1641136020136,27.66479,175.07,174.98,19.54313572]
[1641136020338,2.78171686,175.06,174.98,19.54313572]
[1641136020833,12.16819662,175.06,175.02,4.05606554]
[1641136021435,27.66479,175.07,174.98,19.54313572]
[1641136021635,2.78170941,175.06,174.98,28.00313572]
[1641136022741,44.14469351,175.06,175.02,4.0560645]
[1641136022936,12.16819351,175.06,175.02,4.0560645]
[1641136023136,2.78170923,175.05,174.99,1.27207395]
[1641136024136,31.7114,175.06,174.99,1.27207395]
[1641136024337,43.87956268,175.06,175.02,4.05605423]
[1641136024536,12.16816268,175.06,175.02,4.05605423]
[1641136024836,2.78169688,175.06,174.99,1.27207395]
[1641136025635,12.16814458,175.06,175.02,4.05604819]
[1641136026236,27.66479,175.05,175.02,4.05604819]
[1641136026435,27.66479,175.05,174.99,1.27207395]
[1641136026638,27.66479,175.05,175.03,4.05604925]
[1641136027036,14.94984303,175.07,175.03,4.05604925]
[1641136027236,14.94984303,175.07,174.99,13.44080552]
[1641136027437,2.78169528,175.04,174.99,13.44080552]
[1641136028038,12.16814775,175.07,175.03,4.05598522]
[1641136028238,27.66479,175.05,175.03,4.05598522]
[1641136028439,12.16814775,175.07,175.03,4.05598522]
[1641136028738,12.16814775,175.07,174.99,13.44080552]
[1641136028938,2.78162485,175.07,175.01,4.04810017]
[1641136029639,2.78162485,175.07,175.02,4.04787787]
[1641136030641,27.66479,175.08,174.99,1.27207395]
[1641136030840,5.677,175.07,174.99,1.27207395]
[1641136031341,2.77642179,175.06,175.01,4.04828469]
[1641136032042,2.77642179,175.06,174.98,8.46]
[1641136032241,32.49922179,175.06,174.98,8.46]
[1641136033245,2.77642179,175.05,175.01,4.04818033]
[1641136033944,2.77625707,175.07,175.0,1.27187334]
[1641136034544,4.04813355,175.04,175.01,4.04813355]
[1641136035047,2.77625707,175.07,175.0,1.27187787]
[1641136036247,2.77625707,175.07,175.01,27.66479]
[1641136036448,4.04813745,175.04,175.01,34.71292745]
[1641136037049,2.77625707,175.07,175.01,30.66479]
[1641136037953,14.94440482,175.07,175.03,4.05579601]
[1641136038851,27.66479,175.08,175.01,30.66479]
[1641136039051,27.66479,175.08,175.01,27.66479]
[1641136039552,14.94894871,175.07,175.03,4.05583112]
[1641136040054,27.66479,175.08,175.01,27.66479]
[1641136040654,27.66479,175.08,174.99,12.16873157]
[1641136040854,14.9494083,175.07,175.03,4.05594322]
[1641136041455,27.66479,175.08,174.99,12.16873157]
[1641136041656,12.16856297,175.06,175.02,4.05618766]
[1641136042755,12.16856297,175.06,174.99,28.93913325]
[1641136043959,12.90419836,175.07,175.02,4.05611837]
[1641136044661,12.16836006,175.06,174.99,27.66479]
[1641136045162,12.90419836,175.07,174.99,27.66479]
[1641136045360,12.90419836,175.07,175.02,4.0562295]
[1641136045962,12.16871348,175.06,174.98,23.62873157]
[1641136046463,12.16871348,175.06,175.0,27.66479]
[1641136046863,12.16871348,175.07,175.03,4.05607811]
[1641136047063,12.16871348,175.07,175.03,10.42507811]
[1641136047764,12.16871348,175.07,175.03,6.369]
[1641136048368,12.90419836,175.09,175.03,6.369]
[1641136048565,12.16813427,175.06,175.03,6.369]
[1641136049267,12.90419836,175.09,175.03,6.369]
[1641136049968,12.16759564,175.07,175.03,10.42486521]
[1641136050770,12.15813187,175.08,175.03,6.369]
[1641136050971,12.15813187,175.08,175.01,30.4843]
[1641136051370,12.90419836,175.09,175.02,5.32619883]
[1641136051371,12.15813187,175.07,175.02,5.32619883]
[1641136052072,12.15813187,175.07,175.01,30.4843]
[1641136052672,12.15813187,175.07,175.02,5.32628376]
[1641136053173,4.05292849,175.03,175.01,30.4843]
[1641136053373,4.05292849,175.03,175.0,27.66479]
[1641136054274,31.4738,175.06,175.0,27.66479]
[1641136054673,4.05304694,175.02,175.01,5.32639199]
[1641136055275,4.05265105,175.04,175.0,27.66479]
[1641136055674,4.05265105,175.04,175.0,30.66479]
[1641136055875,4.05265105,175.04,175.0,27.66479]
[1641136056078,12.15813187,175.08,175.03,4.05263771]
[1641136056778,4.05249968,175.05,175.04,4.05249968]
[1641136057480,41.55193187,175.09,175.01,1.27340109]
[1641136057982,14.93942406,175.08,175.04,4.0556828]
[1641136058683,29.3938,175.09,175.01,1.27340109]
[1641136059981,2.78125008,175.08,175.04,4.05564452]
[1641136060282,12.16693356,175.08,175.01,19.54428085]
[1641136061286,29.3938,175.09,175.01,19.54428085]
[1641136061486,2.78112239,175.08,175.05,4.05552844]
[1641136062183,29.3938,175.09,175.06,4.05543013]
[1641136062383,39.83108039,175.1,175.06,4.05543013]
[1641136062785,39.83108039,175.1,175.03,58.03359]
[1641136062786,2.78101369,175.08,175.03,58.03359]
[1641136063485,14.94730415,175.09,175.05,4.05542968]
[1641136064086,27.66479,175.1,175.03,58.03359]
[1641136064685,27.66479,175.1,175.04,3.0]
[1641136064887,14.94731818,175.09,175.05,4.05543343]
[1641136065487,27.66479,175.1,175.07,4.05497121]
[1641136065686,27.66479,175.1,175.07,9.68597121]
[1641136066488,2.78042577,175.09,175.07,5.631]
[1641136067290,27.66479,175.1,175.07,9.68588447]
[1641136068192,2.78041233,175.09,175.07,5.631]
[1641136068895,12.11465395,175.14,175.07,5.631]
[1641136069094,12.11465395,175.14,175.06,3.0]
[1641136069695,12.11465395,175.14,175.04,3.0]
[1641136069996,12.11465395,175.15,175.04,3.0]
[1641136070197,12.11465395,175.15,175.05,3.0]
[1641136070395,12.11465395,175.15,175.03,66.78359]
[1641136071097,12.11465395,175.15,175.06,5.30726507]
[1641136071298,12.11465395,175.15,175.07,29.7776]
[1641136071904,14.88350919,175.15,175.07,29.7776]
[1641136072501,2.76885524,175.15,175.07,29.7776]
[1641136073302,4.03794801,175.12,175.07,29.7776]
[1641136080509,4.03794801,175.09,175.08,1.27485222]
[1641136082510,4.03794801,175.09,175.06,27.66479]
[1641136082511,4.03794801,175.09,175.07,1.27485222]
[1641136089823,4.03794801,175.11,175.07,1.27485222]
[1641136096232,4.03794801,175.11,175.08,4.046492]
[1641136098333,4.03794801,175.1,175.09,4.046492]
[1641136099233,4.03794801,175.1,175.07,1.27485222]
[1641136100436,14.89430835,175.13,175.09,4.05389065]
[1641136104742,14.89430835,175.13,175.09,31.71868065]
[1641136113052,2.7796544,175.13,175.1,5.32859642]
[1641136117064,2.7796544,175.13,175.1,11.34959642]
[1641136117464,4.05346749,175.12,175.11,5.32859642]
[1641136118162,2.7796544,175.13,175.11,5.32859642]
[1641136119168,14.89430835,175.15,175.1,5.32859642]
[1641136119869,4.04873005,175.12,175.1,5.32859642]
[1641136120067,4.04873005,175.12,175.1,11.07059642]
[1641136120269,4.04873005,175.12,175.11,3.0]
[1641136120679,2.7796544,175.16,175.11,4.27470577]
[1641136121073,2.7796544,175.16,175.13,27.66479]
[1641136121479,2.7796544,175.16,175.13,30.66479]
[1641136121973,12.11465395,175.19,175.13,30.66479]
[1641136122377,12.11465395,175.19,175.14,3.0]
[1641136122574,12.11465395,175.19,175.14,7.81]
[1641136122776,2.7796544,175.2,175.14,9.08470577]
[1641136122975,2.7796544,175.2,175.17,27.66479]
[1641136124777,14.89430835,175.23,175.17,27.66479]
[1641136127079,2.7796544,175.23,175.18,1.27364428]
[1641136127480,2.7796544,175.23,175.18,5.60564428]
[1641136127779,14.89430835,175.24,175.18,5.60564428]
[1641136128684,12.11465395,175.23,175.19,1.27364428]
[1641136129385,12.11465395,175.22,175.18,4.332]
[1641136130085,12.88654883,175.24,175.17,21.18084331]
[1641136130486,2.7796544,175.21,175.17,21.18084331]
[1641136131386,12.15743647,175.22,175.18,1.2753165]
[1641136132487,12.15743647,175.22,175.18,4.654]
[1641136132689,12.15743647,175.21,175.18,4.654]
[1641136133287,12.15743647,175.22,175.18,4.654]
[1641136135391,12.15743647,175.22,175.18,7.654]
[1641136135593,12.15743647,175.22,175.18,4.654]
[1641136135990,12.15743647,175.22,175.19,3.0]
[1641136136191,2.7796544,175.24,175.19,4.27539669]
[1641136136991,2.7796544,175.24,175.21,27.66479]
[1641136137192,12.15743647,175.26,175.21,27.66479]
[1641136137391,12.15743647,175.28,175.21,27.66479]
[1641136137992,14.93709087,175.28,175.22,1.27539669]
[1641136138194,14.93709087,175.28,175.22,6.78839669]
[1641136138793,14.93709087,175.28,175.23,1.27539669]
[1641136140094,14.93709087,175.28,175.24,3.0]
[1641136140493,2.7796544,175.28,175.24,3.0]
[1641136141092,2.7796544,175.28,175.24,30.66479]
[1641136141492,2.7796544,175.28,175.24,27.66479]
[1641136141695,2.7796544,175.28,175.24,30.66479]